Cogmind - Beta 15 @@@ ROGUE MODE // 2025.07.10 @ 22:40:11 Player: jumpy Result: Self-destructed Performance ------------- Evolutions (1) 500 Regions Visited (2) 400 Robots Destroyed (19) 95 Value Destroyed (414) 414 Prototype IDs (0) 0 Alien Tech Used (0) 0 Bonus (0) 0 TOTAL SCORE: 1409 Bonus ------- None Cogmind --------- Core Integrity 324/400 Matter 277/300 Energy 250/250 System Corruption 0% Temperature Hot (215) Movement Core (500) Ox9 Location -9/Materials Parts ------- > --- POWER (1) -------- Ion Engine > --- PROPULSION (3) --- (None) > --- UTILITY (3) ------ Large Storage Unit > --- WEAPON (2) ------- Beam Cannon Assault Rifle > --- INVENTORY (15) --- Ion Engine Wheel Compact Wheel Improved Terrain Scanner Seismic Detector Hacking Suite Mining Laser Peak State ------------ > --- POWER ------------ Ion Engine > --- PROPULSION ------- Light Treads Light Treads > --- UTILITY ---------- Small Storage Unit Seismic Detector > --- WEAPON ----------- Small Laser Assault Rifle > --- INVENTORY -------- Light Ion Engine Wheel Compact Wheel Improved Terrain Scanner Seismic Detector Hacking Suite Mining Laser [Rating: 8] Favorites ----------- Power Ion Engine Engine Ion Engine Propulsion Light Treads Treads Light Treads Utility Seismic Detector Device Seismic Detector Storage Small Storage Unit Weapon Assault Rifle Energy Gun Small Laser Energy Cannon Beam Cannon Ballistic Gun Assault Rifle Build | -11 -10 -9 ------- Run | Yrd Mat Mat Slots Evolved 2 | . . 2 Power . | . . . Propulsion 1 | . . 1 Utility 1 | . . 1 Weapon . | . . . Parts Attached 12 | 10 2 . Power 2 | 2 . . Engine 2 | 2 . . Core . | . . . Reactor . | . . . Propulsion 2 | 2 . . Treads 2 | 2 . . Leg . | . . . Wheel . | . . . Hover . | . . . Flight . | . . . Utility 4 | 3 1 . Device 2 | 2 . . Storage 2 | 1 1 . Processor . | . . . Hackware . | . . . Protection . | . . . Artifact . | . . . Weapon 4 | 3 1 . Energy Gun 2 | 2 . . Energy Cannon 1 | . 1 . Ballistic Gun 1 | 1 . . Ballistic Cannon . | . . . Launcher . | . . . Special Weapon . | . . . Impact Weapon . | . . . Slashing Weapon . | . . . Piercing Weapon . | . . . Special Melee Weapon . | . . . Unidentified Prototypes . | . . . Parts Lost 3 | . . 3 Power . | . . . Propulsion 2 | . . 2 Utility 1 | . . 1 Weapon . | . . . Highest Loss Streak 3 | . . 3 To Critical Strikes . | . . . Average Backups 6 | 3 6 7 Power . | . 1 1 Propulsion 1 | 1 2 2 Utility 2 | . 2 3 Weapon . | . 1 1 Tool/Special . | . . . Unused Backups 7 | . . 7 Power 1 | . . 1 Propulsion 2 | . . 2 Utility 3 | . . 3 Weapon 1 | . . 1 Tool/Special . | . . . Average Slot Usage (%) 96 | . 100 72 Engine 13 | . 14 11 Treads 26 | . 28 18 Device 13 | . 14 9 Storage 13 | . 14 11 Energy Gun 4 | . 5 . Energy Cannon 8 | . 8 11 Ballistic Gun 13 | . 14 11 Peak Build Rating 8 | 7 8 8 Average Rating 7 | 5 7 7 On Entrance 5 | . 7 8 Naked Turns . | . . . Heaviest Build 31 | 14 31 31 Greatest Support 40 | 40 40 40 Greatest Overweight (x) . | . . . Average Overweight (x) . | . . . Largest Inventory Capacity 15 | 8 15 15 Average Capacity 11 | 7 11 15 Most Carried 8 | 6 8 7 Average Carried 6 | 3 6 7 Final Capacity 15 | 8 15 15 Final Carried 7 | 6 7 7 Class Distribution -------------------- 100% | Mutant Dominant Class ---------------- Mutant | -10/Materials Mutant | -9/Materials Resources | -11 -10 -9 ----------- Run | Yrd Mat Mat Matter Collected 399 | 315 61 23 Remotely 44 | 44 . . Salvage Created 653 | 205 364 84 Parts 49 | 18 23 8 Haulers Intercepted 1 | . 1 . Recyclers Shooed . | . . . Parts Field Recycled . | . . . Retrieved Matter . | . . . Parts Self-Destructed . | . . . Prevented . | . . . Kills | -11 -10 -9 ------- Run | Yrd Mat Mat Combat Hostiles Destroyed 12 | . 10 2 Guns 8 | . 8 . Cannons 4 | . 2 2 Classes Destroyed 7 | 2 4 1 Tunneler 4 | 4 . . Hauler 1 | . 1 . Recycler 1 | 1 . . Operator 1 | . 1 . Swarmer 3 | . 3 . Grunt 8 | . 7 1 Duelist 1 | . . 1 Best Kill Streak 5 | 3 5 2 Combat Bots Only 5 | . 5 2 Max Kills in Single Turn 2 | 2 1 1 Gunslinging . | . . . Exploded . | . . . Melee . | . . . Uniques/NPCs Destroyed . | . . . Combat | -11 -10 -9 -------- Run | Yrd Mat Mat Hostile Shots Fired 63 | . 28 35 Missed 19 | . 7 12 Hits 44 | . 21 23 Melee 2 | . . 2 Projectile 42 | . 21 21 Critical Strikes 1 | . . 1 Damage Taken 633 | . 273 360 Core 98 | . 22 76 Absorbed by Shields . | . . . Core Remaining (%) 95 | 100 91 . Volleys Fired 41 | 5 25 11 Largest 2 | 2 2 2 Hottest 80 | 60 80 80 Shots Fired 82 | 10 50 22 Gun 58 | 10 37 11 Cannon 24 | . 13 11 Launcher . | . . . Special . | . . . Kinetic 41 | 5 25 11 Thermal 41 | 5 25 11 Explosive . | . . . Electromagnetic . | . . . Robot Hit Streak 10 | 4 10 5 Robot Miss Streak 3 | 1 3 2 Penetration Max . | . . . Secondary Targets . | . . . Shots Hit Robots 51 | 6 30 15 Core Hits 28 | 6 19 3 Critical Kills . | . . . Critical Parts Destroyed . | . . . Critical Strikes . | . . . Melee Attacks . | . . . Impact . | . . . Slashing . | . . . Piercing . | . . . Sneak Attacks . | . . . Combat Hostiles . | . . . Follow-up Attacks . | . . . Damage Inflicted 750 | 86 412 252 Guns 460 | 86 284 90 Cannons 282 | . 123 159 Explosions . | . . . Melee . | . . . Ramming 8 | . 5 3 Kinetic 326 | 53 183 90 Thermal 416 | 33 224 159 Explosive . | . . . Electromagnetic . | . . . Impact . | . . . Slashing . | . . . Piercing . | . . . Highest Corruption . | . . . Average Corruption . | . . . Corruption Purged . | . . . Corruption Blocked . | . . . Overload Shots . | . . . Overflow Damage . | . . . Projectiles . | . . . Explosions . | . . . Melee . | . . . Knockbacks . | . . . Impact . | . . . Kinetic . | . . . Secondary . | . . . Self-Inflicted Damage . | . . . Shots . | . . . Rammed 2 | . 1 1 Targets Rammed 2 | . 1 1 Kicked . | . . . Crushed . | . . . Highest Temperature 241 | . 241 215 Average Temperature 92 | . 88 99 Received Heat Transfer 315 | . 147 168 Siege Activations . | . . . Martial Activations . | . . . Shielding Activations . | . . . Robots Disrupted . | . . . Combat Hostiles . | . . . Robots Corrupted . | . . . Combat Hostiles . | . . . Parts Fried . | . . . Impact Corruptions . | . . . Robots Melted . | . . . Combat Hostiles . | . . . Parts Melted 2 | . 2 . Heat Transferred 892 | 75 484 333 Parts Sabotaged . | . . . Parts Stolen . | . . . Parts Stripped . | . . . Power Chain Reactions . | . . . Alert | -11 -10 -9 ------- Run | Yrd Mat Mat Maximum Alert Level . | . . . Low Security (%) 100 | 100 100 100 Level 1 . | . . . Level 2 . | . . . Level 3 . | . . . Level 4 . | . . . Level 5 . | . . . High Security . | . . . Max Security . | . . . Peak Influence 110 | 10 110 30 Initial 18 | . . 18 Average 29 | 1 40 12 Influence Increases 342 | 25 267 50 Destroy 0b10 Robot/C 240 | . 200 40 Destroy 0b10 Robot/NC 35 | 25 10 . Destroy Leader 52 | . 42 10 Lose Combat Pursuer 15 | . 15 . Influence Decreases 342 | 25 221 96 Entered New Map 28 | . . 28 Time Decay 284 | 25 221 38 Lost Part 30 | . . 30 Squads Dispatched 3 | . 3 . Investigation 1 | . 1 . Extermination . | . . . Reinforcement 2 | . 2 . Assault . | . . . Garrison . | . . . Intercept . | . . . Searches Triggered . | . . . Construction Impeded . | . . . Haulers Reinforced . | . . . Active Scanning Responses . | . . . Cargo Convoy Interrupts . | . . . Stealth | -11 -10 -9 --------- Run | Yrd Mat Mat Distress Signals 3 | . 3 . Communications Jammed . | . . . Distress Signals . | . . . Times Spotted 18 | . 14 4 Peak Tracking Total 6 | . 6 4 Tactical Retreats 1 | . 1 . Traps | -11 -10 -9 ------- Run | Yrd Mat Mat Traps Triggered 2 | . 1 1 Indirectly . | . . . Trap Hack Attempts . | . . . Triggered . | . . . Disarmed . | . . . Reprogrammed . | . . . Reused . | . . . Traps Extracted . | . . . Installed . | . . . Triggered . | . . . Machines | -11 -10 -9 ---------- Run | Yrd Mat Mat Machines Disabled . | . . . Max in Single Turn . | . . . Machines Repaired . | . . . Machines Dismantled . | . . . Machines Sabotaged . | . . . Overloaded Fab Kills . | . . . Hacking | -11 -10 -9 --------- Run | Yrd Mat Mat Machines Accessed 4 | . 4 . Terminals 4 | . 4 . Fabricators . | . . . Repair Stations . | . . . Recycling Units . | . . . Scanalyzers . | . . . Garrison Access . | . . . Total Hacks 5 | . 5 . Successful 4 | . 4 . Failed 1 | . 1 . Catastrophic . | . . . Database Lockouts . | . . . Manual 5 | . 5 . Terminals 5 | . 5 . Fabricators . | . . . Repair Stations . | . . . Recycling Units . | . . . Scanalyzers . | . . . Garrison Access . | . . . Terminal Hacks . | . . . Fabricator Hacks . | . . . Repair Station Hacks . | . . . Recycling Unit Hacks . | . . . Scanalyzer . | . . . Garrison Access Hacks . | . . . Unauthorized Hacks 4 | . 4 . Terminals 4 | . 4 . Skim 4 | . 4 . Fabricators . | . . . Repair Stations . | . . . Recycling Units . | . . . Scanalyzers . | . . . Garrison Access . | . . . Data Cores Recovered . | . . . Used . | . . . Hacking Detections 1 | . 1 . Full Trace Events . | . . . Feedback Events . | . . . Feedback Blocked . | . . . Robot Schematics Acquired . | . . . Robots Built . | . . . Authchips . | . . . Time . | . . . Total Robot Build Rating . | . . . Part Schematics Acquired . | . . . Parts Built . | . . . Authchips . | . . . Time . | . . . Total Part Build Rating . | . . . Parts Repaired . | . . . Time . | . . . Parts Recycled . | . . . Recycled Matter . | . . . Retrieved Matter . | . . . Retrieved Components . | . . . Parts Scanalyzed . | . . . Part Schematics Acquired . | . . . Parts Damaged . | . . . Bothacking | -11 -10 -9 ------------ Run | Yrd Mat Mat Used RIF Installer . | . . . Robots Hacked . | . . . Non-combat . | . . . Combat . | . . . Robot Hacks Applied . | . . . Relay Couplers Released . | . . . Fabnet Peak Effective % . | . . . Robots Rewired . | . . . Allies Hacked . | . . . Hacks Repelled . | . . . Allies | -11 -10 -9 -------- Run | Yrd Mat Mat Total Allies . | . . . Largest Group . | . . . Highest-Rated Group . | . . . Highest-Rated Ally . | . . . Total Orders . | . . . Ally Attacks . | . . . Total Damage . | . . . Kills . | . . . Allies Corrupted . | . . . Allies Melted . | . . . Intel | -11 -10 -9 ------- Run | Yrd Mat Mat Active Infowar (turns) 686 | 91 526 69 Seismic 686 | 91 526 69 Robot Analysis Total . | . . . Derelict Logs Recovered . | . . . Drone Launches . | . . . Drone Recoveries . | . . . Exploration | -11 -10 -9 ------------- Run | Yrd Mat Mat Turns Passed 785 | 177 526 82 Spaces Moved 368 | 90 249 29 Core 3 | 3 . . Treads 365 | 87 249 29 Legs . | . . . Wheels . | . . . Hover . | . . . Flight . | . . . Fastest Speed 50 | 50 160 160 Average Speed 159 | 156 160 160 Slowest Speed 160 | 160 160 160 Overloaded Moves . | . . . Propulsion Burnouts . | . . . Robots Hopped . | . . . Potential Cave-ins . | . . . Cave-ins Triggered . | . . . Exploration Rate (%) 18 | 6 42 7 Regions Visited 2 Branch Regions . Pre-discovered Areas . | . . . Known Exits Taken . | . . . Unknown Exits Taken 2 | 1 1 . Scrap Searched . | . . . Spaces Dug . | . . . Terrain Destroyed . | . . . Melee . | . . . Projectile . | . . . AOE . | . . . Terrain Rammed . | . . . Walls Destroyed . | . . . Machines Disabled . | . . . Actions | -11 -10 -9 --------- Run | Yrd Mat Mat Total 479 | 112 326 41 Wait 46 | . 46 . Move 366 | 89 248 29 Hop . | . . . Pick Up 8 | 6 2 . Fast Attach 8 | 8 . . Attach . | . . . Detach . | . . . Swap 4 | 2 2 . Drop 4 | 2 2 . Fire 41 | 5 25 11 Melee . | . . . Ram . | . . . Kick . | . . . Crush 2 | . 1 1 Escape Stasis . | . . . Rewire . | . . . Trap . | . . . Miscellaneous . | . . . Route ------- -11/Scrapyard -10/Materials (discovered 2 exits: [*Mat] / [*Min]) -9/Materials History --------- Turn | Location | Event 8 | -11/Scrapyard | Discovered new exit (range 16) 178 | -11/Scrapyard | Entered Materials 312 | -10/Materials | Build established: Mutant 350 | -10/Materials | Discovered new exit (range 5) 610 | -10/Materials | Discovered new exit (range 14) 704 | -10/Materials | Entered another Materials area 704 | -9/Materials | Evolved 2 slots: Propulsion x1, Utility x1 786 | -9/Materials | Self-destructed Last Messages --------------- LOCATION=UNKNOWN GOAL=ESCAPE 00721_ K-01 Serf collects debris. 00748_ Triggered Explosive Trap. 00748_ An explosion rips through the floor. 00751_ K-01 Serf destroyed. 00751_ G-34 Mercenary destroyed. 00755_ Lgt. Treads destroyed. 00766_ Slammed into L-31 Rogue. 00767_ Extracted 23 matter. 00768_ L-31 Rogue destroyed. 00772_ R-06 Scavenger collects Ion Engine. 00773_ Seismic Detector destroyed. 00774_ R-06 Scavenger collects Heat Sink. 00776_ R-06 Scavenger collects Sml. Laser. 00778_ R-06 Scavenger collects Aluminum Leg. 00782_ Critical hit (Burn: +37). 00783_ R-06 Scavenger collects Imp. Ion Engine. 00783_ Lgt. Treads destroyed. 00783_ R-06 Scavenger collects Imp. Aluminum Leg. Map ----- +----------------------------------------------------+ | ???????????????????????????????????? | | ??????????????????????#####????????? | | ??????????????????????# ########?? | | ??????????????????????# # ? | | ??????????????????????# # """ ? | | ??????????????????????# #! """ # | | ????????????????###???# # """ # | | ????????????????# ??# + # | | ????????????????# ??# # """ # | | ????????????????# ?# # """ # | | ????????????????# ## # """ ? | | ????????????????# + # ? | | ????????????????# # ########?? | | ????????????????# # #????????? | | ????????????????# + #????????? | | ????????????????# # #????????? | | ????????????????###??# #????????? | | ?????????????????????# ##???????? | | ????????????????????## #???????? | | ????????????????????# #???????? | | ????????????????????# #???????? | | ????????????????????# #???????? | | ????????????????????# ##??????? | | ????????????????????# #??????? | | ????????????????????# #??????? | | ????????????????????#^^ !@ #??????? | | ????????????????????# r%% #??????? | | ?????????????? r * ???? | | ??????????????##### gr #### #??? | | ??????????????????# ##???????? | | ??????????????????# g #????????? | | ??????????????????# ####????????? | | ??????????????????# % ????????????? | | ??????????????????# ????????????? | | ????????????????? ????????????? | | ???????????????? ????????????? | | ???????????????# #+????????????? | | ???????????????# ??????????????? | | ????????????????? ???????????????? | | ???????????????????????????????????? | | ???????????????????????????????????? | | ???????????????????????????????????? | | ???????????????????????????????????? | | ???????????????????????????????????? | | ???????????????????????????????????? | | ???????????????????????????????????? | | ???????????????????????????????????? | | ???????????????????????????????????? | | ???????????????????????????????????? | | ???????????????????????????????????? | +----------------------------------------------------+ Best States ------------- Heat Dissipation 28 Energy Generation 10 Energy Capacity 250 Matter Stores 300 Matter Capacity 300 Sight Range 16 Terrain Scan Density 10 Evasion (%) 40 Recoil Reduction 2 Item Schematics ----------------- None Robot Schematics ------------------ None Fabricated ------------ Nothing Repaired ---------- Nothing Alien Tech Used ----------------- None Achievements -------------- None Challenges ------------ None Game ------ Seed ZhirovAbsorptionCalibrator Manual? 0 Play Time 00:04:39 Cumulative 142.8 hours Start 2025.07.10 @ 15:40:40 End 2025.07.10 @ 22:40:11 Sessions 1 Manual Loads 0 Difficulty Rogue Special Mode None Game No. 370 Rogue 370 Adventurer 0 Explorer 0 Win Type - Total 4 Types 3/0/1/0/0/0/0/0/0/0 Lore% 68 Gallery% 57 Achievement% 47 Wizard Run 0 Options --------- Layout 0 ASCII 0 Keyboard 0 Movement Numpad Keybinds 0 Fullscreen 2 Font 18/Terminus Map View 76x50 Zoom Use 0% Tactical HUD 1 Map Filters NONE Filters NONE Steam 1 RUN: 4519a2aa-5d14-4bea-bf04-2d7f079c5e31